bitfinex/quotes_ETHUSD_20260312
["timestamp","ask_amount","ask_price","bid_price","bid_amount"]
[1773305918606,0.48772409,2047.5,2047.1,1.70310353]
[1773305919301,0.48772409,2047.5,2047.1,1.70314983]
[1773305921108,1.7087265,2047.5,2047.1,1.70314983]
[1773305921484,0.48772409,2047.5,2047.1,1.70314983]
[1773305922005,1.22100599,2047.5,2047.1,1.70314983]
[1773305922306,0.48772409,2047.4,2047.1,1.70314983]
[1773305923508,0.48772409,2047.4,2047.2,0.001]
[1773305927412,0.48772409,2047.4,2047.3,0.001]
[1773305927601,0.48972409,2047.4,2047.3,0.001]
[1773305929615,0.002,2047.4,2047.1,0.48768507]
[1773305929812,0.002,2047.4,2047.2,0.001]
[1773305931717,0.002,2047.4,2047.3,0.001]
[1773305932218,0.002,2047.4,2047.2,0.46526031]
[1773305932391,0.47935769,2047.4,2047.3,0.001]
[1773305932693,0.47935769,2047.4,2047.1,0.46626031]
[1773305933822,0.47935769,2047.4,2047.1,1.68745881]
[1773305937326,0.002,2047.6,2047.3,0.46526031]
[1773305939725,0.002,2047.6,2047.4,1.68732116]
[1773305939922,0.002,2047.6,2047.5,0.46526031]
[1773305942403,0.002,2047.6,2047.5,0.46626031]
[1773305942604,0.002,2047.7,2047.6,0.46526031]
[1773305943718,0.002,2047.7,2047.5,0.46626031]
[1773305946906,0.002,2047.7,2047.5,0.46526031]
[1773305948334,0.002,2047.7,2047.5,1.68625714]
[1773305948829,0.002,2047.7,2047.6,0.001]
[1773305950236,0.002,2047.7,2047.6,0.46626031]
[1773305952336,0.002,2047.7,2047.6,1.6872019]
[1773305952636,0.002,2047.9,2047.8,0.001]
[1773305957942,0.002,2047.9,2047.8,0.002]
[1773305962129,0.002,2047.9,2047.8,0.001]
[1773305962826,0.002,2047.9,2047.8,0.002]
[1773305967060,0.46811205,2047.9,2047.5,0.001]
[1773305967354,0.46611205,2047.8,2047.3,0.001]
[1773305967868,0.46611205,2047.8,2047.3,1.22211488]
[1773305968555,0.46611205,2047.8,2047.3,1.69766952]
[1773305968758,0.46611205,2047.8,2047.4,0.47555464]
[1773305970056,1.68697861,2047.8,2047.4,0.47555464]
[1773305970552,0.46611205,2047.7,2047.4,1.69661239]
[1773305970752,0.46611205,2047.7,2047.4,0.47555464]
[1773305976364,0.46611205,2047.7,2047.6,0.001]
[1773305976588,0.002,2048.0,2047.7,0.47555464]
[1773305976741,0.002,2048.0,2047.6,0.47655464]
[1773305977638,0.46811205,2048.0,2047.6,0.47655464]
[1773305978138,0.46611205,2048.0,2047.6,0.47655464]
[1773305979347,0.46611205,2048.0,2047.7,1.6964366]
[1773305979942,0.46811205,2048.0,2047.7,0.47555464]
[1773305981073,0.002,2048.1,2047.7,0.47555464]
[1773305981274,0.004,2048.1,2047.7,0.47555464]
[1773305981574,0.004,2048.1,2047.9,0.47555464]
[1773305983675,0.004,2048.1,2047.9,1.69625861]
[1773305984974,0.004,2048.1,2048.0,0.45236822]
[1773305985275,0.61062241,2048.4,2048.2,0.45236822]
[1773305985782,0.61062241,2048.4,2048.3,1.67289255]
[1773305987090,1e-08,2048.4,2048.3,1.67289255]
[1773305987937,0.002,2048.8,2048.4,0.45236822]
[1773305988071,0.49701905,2048.8,2048.4,0.45236822]
[1773305990076,0.002,2048.6,2048.5,1.67277339]
[1773305993865,0.46207124,2048.6,2048.4,1.22042587]
[1773305996705,0.46007124,2048.7,2048.4,1.68071646]
[1773305996901,0.46207124,2048.8,2048.5,0.46029059]
[1773305997087,0.46207124,2048.8,2048.4,1.22042587]
[1773305997874,0.46207124,2048.9,2048.5,0.46029059]
[1773305998102,0.46007124,2048.8,2048.4,1.22042587]
[1773305998711,0.46007124,2048.8,2048.4,1.68071646]
[1773306000211,0.46007124,2048.7,2048.2,0.46029059]
[1773306000817,0.46207124,2048.9,2048.2,0.46029059]
[1773306001192,0.002,2048.9,2048.3,0.46029059]
[1773306001916,0.002,2048.9,2048.5,0.46029059]
[1773306002294,0.002,2048.9,2048.7,0.46029059]
[1773306002992,0.002,2048.8,2048.7,0.46029059]
[1773306003315,0.46207124,2048.8,2048.6,0.001]
[1773306005099,0.46207124,2048.8,2048.5,1.22037637]
[1773306005827,0.46207124,2048.8,2048.1,0.001]
[1773306005828,0.46007124,2048.6,2048.1,0.001]
[1773306006116,0.46007124,2048.0,2047.7,0.46029059]
[1773306006424,0.46007124,2048.0,2047.5,5.31310934]
[1773306006587,0.4584479,2048.0,2047.6,0.43096632]
[1773306006993,0.4584479,2048.0,2047.5,4.88376636]
[1773306007402,0.4584479,2048.0,2047.5,5.31473268]
[1773306007702,0.46007124,2048.2,2047.7,0.43096632]
[1773306009333,0.46007124,2048.2,2047.8,1.22082234]
[1773306010718,0.46007124,2048.2,2047.9,0.43096632]
[1773306011038,0.46007124,2048.5,2047.9,0.43096632]
[1773306011329,0.46007124,2048.5,2048.0,1.22070312]
[1773306011530,1.22040974,2048.5,2048.0,1.22070312]
[1773306011733,0.46007124,2048.4,2048.0,1.22070312]
[1773306012330,0.46007124,2048.4,2047.9,1.22071593]
[1773306013623,0.46007124,2048.4,2047.8,4.88320289]
[1773306014912,0.46007124,2048.2,2047.7,1.22082234]
[1773306015511,0.46007124,2048.2,2048.0,0.001]
[1773306017329,0.46007124,2048.0,2047.6,1.22094159]
[1773306017498,0.46007124,2048.0,2047.5,1.65291066]
[1773306017700,0.46007124,2047.9,2047.5,0.43196632]
[1773306018010,0.46007124,2047.9,2047.5,1.65293243]
[1773306019426,0.46007124,2047.8,2047.5,1.65293197]
[1773306022724,0.39588658,2047.8,2047.5,1.65293197]
[1773306028109,0.39588658,2047.8,2047.5,1.22195267]
[1773306028432,0.39588658,2047.8,2047.7,0.001]
[1773306028731,0.46047605,2047.7,2047.5,0.001]
[1773306029028,0.45847605,2047.6,2047.5,0.001]
[1773306034443,0.45847605,2047.5,2047.3,0.001]
[1773306038244,1.68140715,2047.7,2047.3,0.46131725]
[1773306038434,0.45847605,2047.6,2047.3,0.46131725]
[1773306039440,0.45847605,2047.5,2047.3,0.001]
[1773306040746,0.45847605,2047.5,2047.4,1.22106085]
[1773306040941,0.46047605,2047.7,2047.3,0.46131725]
[1773306041117,0.45847605,2047.6,2047.3,1.68238907]
[1773306041518,0.45847605,2047.6,2047.5,0.001]
[1773306042251,0.45847605,2047.5,2047.3,0.001]
[1773306043338,1.22294159,2047.6,2047.2,0.001]
[1773306043339,0.45352227,2047.3,2047.2,0.001]
[1773306047562,0.45352227,2047.2,2047.0,0.001]
[1773306047731,0.45352227,2047.2,2046.8,0.48293126]
[1773306047732,0.45352227,2047.2,2046.8,0.001]
[1773306047936,0.45352227,2046.9,2046.5,0.48193126]
[1773306048657,0.45352227,2046.9,2046.5,1.70348318]
[1773306050368,0.45352227,2046.9,2046.6,0.46493998]
[1773306050664,0.48872833,2047.0,2046.7,1.22147847]
[1773306053470,0.48872833,2047.0,2046.6,1.68643185]
[1773306054372,0.48872833,2047.0,2046.7,0.001]
[1773306054567,0.002,2046.8,2046.7,0.001]
[1773306054870,0.49072833,2046.8,2046.5,0.001]
[1773306055541,0.48872833,2046.7,2046.5,0.001]
[1773306062156,0.002,2046.8,2046.5,0.46593998]
[1773306062360,0.49072833,2046.8,2046.5,0.46593998]
[1773306062559,0.49072833,2046.8,2046.5,1.22259662]
[1773306063257,0.002,2046.8,2046.6,0.46493998]
[1773306064378,0.002,2046.8,2046.6,1.68642663]
[1773306067879,0.49072833,2046.8,2046.7,0.001]
[1773306068689,0.48872833,2046.7,2046.5,0.001]
[1773306073288,0.48872833,2046.6,2046.5,0.001]
[1773306073497,0.48872833,2046.6,2046.2,0.001]
[1773306073660,0.48872833,2046.6,2046.2,1.22277258]
[1773306073977,0.48872833,2046.6,2046.2,1.68771256]
[1773306074161,0.48872833,2046.6,2046.3,0.46493998]
[1773306075699,0.48872833,2046.6,2046.3,1.68665563]
[1773306076985,0.002,2046.8,2046.4,0.46493998]
[1773306077571,0.002,2046.8,2046.6,0.46493998]
[1773306079686,0.002,2046.8,2046.6,1.68643944]
[1773306079885,0.002,2047.0,2046.7,0.46493998]
[1773306080389,0.002,2047.0,2046.7,0.46593998]
[1773306081298,0.002,2046.8,2046.7,0.46593998]
[1773306082895,0.002,2047.3,2046.8,0.48854618]
[1773306083192,0.45176941,2047.2,2046.8,0.48854618]
[1773306085194,0.45176941,2047.2,2046.8,1.70992059]
[1773306085575,0.45376941,2047.1,2046.8,1.70993521]
[1773306085775,0.45176941,2047.1,2046.8,1.70993521]
[1773306086175,0.45376941,2047.1,2046.8,1.70993521]
[1773306087799,0.002,2047.1,2046.9,0.48854618]
[1773306089405,0.45376941,2047.1,2046.7,0.48954618]
[1773306091502,0.002,2047.0,2046.7,1.71101738]
[1773306092076,0.002,2046.9,2046.7,1.71101738]
[1773306092277,0.45176941,2047.2,2046.8,0.48854618]
[1773306092673,0.45176941,2047.2,2046.7,1.2224712]
[1773306092878,0.45376941,2047.3,2046.8,0.48854618]
[1773306093504,0.002,2047.3,2047.1,1.2212398]
[1773306093882,0.45376941,2047.6,2047.2,0.48854618]
[1773306094413,0.002,2047.4,2047.2,0.48854618]
[1773306094587,0.45376941,2047.4,2046.9,4.88530699]
[1773306094917,0.45376941,2047.4,2046.9,1.22135912]
[1773306095107,0.45376941,2047.4,2046.9,1.7099053]
[1773306095610,0.45176941,2047.3,2046.9,1.7099053]
[1773306096083,0.45176941,2047.3,2046.9,1.22135912]
[1773306098611,0.45176941,2047.3,2046.8,0.48954618]
[1773306098809,0.45176941,2047.0,2046.7,0.001]
[1773306099637,0.45176941,2046.8,2046.7,0.001]
[1773306099787,0.45176941,2046.7,2046.5,0.001]
[1773306101418,0.45176941,2046.7,2046.5,1.2225921]
[1773306101724,0.45176941,2047.0,2046.7,1.22147847]
[1773306102083,0.45176941,2047.0,2046.6,1.71003804]
[1773306102993,0.45176941,2047.0,2046.7,0.48481803]
[1773306103186,0.45176941,2047.0,2046.6,1.22149186]
[1773306104400,0.45176941,2047.0,2046.6,1.70630989]
[1773306106219,0.45176941,2047.0,2046.8,0.001]
[1773306108715,0.4917519,2046.9,2046.6,1.22149186]
[1773306108894,0.4917519,2046.9,2046.5,1.22255527]
[1773306110002,0.4917519,2046.9,2046.5,1.7073733]
[1773306112846,0.4917519,2046.9,2046.6,0.49092446]
[1773306117650,0.4917519,2046.9,2046.6,1.7124222]
[1773306117825,0.4917519,2046.9,2046.6,0.49092446]
[1773306118010,0.4917519,2046.9,2046.6,1.71242309]
[1773306118848,0.4917519,2046.9,2046.8,0.001]
[1773306120953,0.002,2047.0,2046.8,0.001]
[1773306121657,0.002,2047.0,2046.8,0.49192446]
[1773306122180,0.002,2047.3,2047.0,0.49092446]
[1773306123433,0.002,2047.3,2047.1,1.2212398]
[1773306124364,0.002,2047.3,2047.0,1.71217453]
[1773306124563,0.46702939,2047.3,2047.0,1.71217453]
[1773306126384,0.002,2047.6,2047.2,0.49092446]
[1773306127156,0.002,2047.7,2047.2,0.49092446]
[1773306127747,0.002,2047.7,2047.4,0.49092446]
[1773306128357,0.002,2047.9,2047.6,0.49092446]
[1773306130973,0.002,2047.9,2047.7,1.22088196]
[1773306131269,0.002,2047.9,2047.7,1.71180642]
[1773306132971,0.002,2047.9,2047.7,1.55443242]
[1773306133468,0.002,2047.9,2047.4,5.54721934]
[1773306133668,0.002,2047.9,2047.8,0.49092446]
[1773306135971,0.002,2047.9,2047.8,1.7117468]
[1773306136170,0.46702939,2047.9,2047.4,1.22106085]
[1773306136376,0.46702939,2047.9,2047.5,0.49092446]
[1773306138286,0.46702939,2047.9,2047.6,1.22094159]
[1773306138488,0.46702939,2047.9,2047.6,1.71186605]
[1773306139589,0.46702939,2047.9,2047.6,1.22094159]
[1773306141683,0.46702939,2047.9,2047.3,4.88400488]
[1773306141684,0.49630791,2047.8,2047.3,1.67664035]
[1773306141898,0.49630791,2047.8,2047.3,1.2211205]
[1773306142059,0.49630791,2047.8,2047.4,0.45551985]
[1773306142482,0.49630791,2047.8,2047.5,1.22100122]
[1773306142687,0.49630791,2047.8,2047.4,1.67654135]
[1773306144470,0.49630791,2047.7,2047.2,1.22218014]
[1773306145201,0.49830791,2047.7,2047.2,1.67769999]
[1773306145405,0.49830791,2047.7,2047.4,0.001]
[1773306148894,0.49830791,2047.7,2047.4,0.45651985]
[1773306150284,0.49830791,2047.7,2047.5,1.22100122]
[1773306150485,0.002,2047.7,2047.5,1.67652107]
[1773306150676,0.002,2047.7,2047.6,0.45551985]
[1773306151197,0.002,2047.7,2047.5,1.67652107]
[1773306158292,0.002,2047.7,2047.5,1.67752107]
[1773306163641,0.002,2047.7,2047.5,1.22200122]
[1773306164141,0.46889547,2047.7,2047.5,0.001]
[1773306164342,0.46889547,2047.7,2047.5,1.22199172]
[1773306164821,0.46889547,2047.7,2047.5,0.001]
[1773306165018,0.46689547,2047.6,2047.4,0.001]
[1773306165320,0.46689547,2047.5,2047.2,1.22215065]
[1773306165841,0.46689547,2047.5,2047.2,0.001]
[1773306166048,0.46689547,2047.5,2047.2,1.22216912]
[1773306170465,0.46689547,2047.5,2047.4,0.001]
[1773306170859,0.46889547,2047.5,2047.4,0.001]
[1773306173211,0.46889547,2047.5,2047.1,1.69959776]
[1773306174407,0.46889547,2047.5,2047.2,0.47056247]
[1773306176717,0.46889547,2047.5,2047.2,1.69168573]
[1773306179817,0.46889547,2047.5,2047.1,0.001]
[1773306179818,0.49668724,2047.4,2047.1,0.001]
[1773306180115,0.49668724,2047.3,2047.1,0.001]
[1773306183001,0.49868724,2047.3,2047.1,0.001]
[1773306183304,0.49868724,2047.3,2047.2,0.001]
[1773306184330,1.2231205,2047.3,2047.1,0.001]
[1773306184631,0.49668724,2047.2,2047.1,0.001]
[1773306186745,1.71786738,2047.2,2047.1,0.001]
[1773306188032,0.49668724,2047.2,2047.1,0.001]
[1773306188532,1.71786738,2047.2,2047.1,0.001]
[1773306188907,0.49668724,2047.2,2047.1,0.001]
[1773306190027,1.71786738,2047.2,2047.1,0.001]
[1773306190337,0.49668724,2047.1,2047.0,0.001]
[1773306194644,0.49668724,2047.0,2046.7,0.001]
[1773306194825,1.15945664,2047.0,2046.7,0.001]
[1773306195226,0.49668724,2046.9,2046.7,0.001]
[1773306196727,1.71805198,2046.9,2046.8,0.001]
[1773306196920,0.49668724,2046.9,2046.8,0.001]
[1773306200252,0.002,2047.1,2046.8,0.46382795]
[1773306201161,0.002,2047.1,2046.9,0.46282795]
[1773306203155,0.002,2047.1,2047.0,1.68412741]
[1773306203456,0.002,2047.3,2047.1,0.46282795]
[1773306203657,0.002,2047.6,2047.2,0.46282795]
[1773306204840,0.002,2047.6,2047.4,0.46282795]
[1773306205036,1e-08,2047.8,2047.4,1.6838888]
[1773306205236,0.002,2048.0,2047.5,0.46282795]
[1773306206051,0.002,2048.0,2047.6,0.46282795]
[1773306206778,0.45311958,2047.9,2047.6,0.46282795]
[1773306206939,0.45311958,2047.9,2047.4,1.22106085]
[1773306207139,0.45311958,2047.9,2047.5,0.46282795]
[1773306207539,0.45311958,2047.9,2047.6,0.46282795]
[1773306209597,0.45311958,2047.9,2047.6,1.68373364]
[1773306210072,0.002,2047.8,2047.6,1.68373364]
[1773306212171,0.002,2047.8,2047.6,0.46282795]
[1773306212355,0.002,2047.8,2047.6,1.6837639]
[1773306215996,0.002,2048.0,2047.7,0.46282795]
[1773306216891,0.002,2048.0,2047.8,0.46282795]
[1773306218196,0.002,2048.0,2047.9,1.22076273]
[1773306218375,0.002,2048.0,2047.9,1.68359068]
[1773306218797,0.002,2048.2,2048.0,0.46282795]
[1773306220382,0.002,2048.2,2048.1,0.46282795]
[1773306220686,0.45311958,2048.5,2048.2,0.46282795]
[1773306220903,0.45311958,2048.6,2048.2,0.46282795]
[1773306221579,0.45511958,2048.7,2048.2,0.46282795]
[1773306222105,0.002,2048.7,2048.4,0.46282795]
[1773306222614,0.002,2048.7,2048.6,0.46282795]
[1773306222916,0.002,2048.7,2048.5,1.67224533]
[1773306226690,0.002,2048.7,2048.5,1.22040517]
[1773306226893,0.002,2048.7,2048.6,1.67218576]
[1773306231100,0.002,2048.9,2048.7,0.49824225]
[1773306231306,0.46969028,2049.1,2048.7,0.49824225]
[1773306233424,0.46969028,2049.1,2048.8,1.22022647]
[1773306233931,0.46969028,2049.1,2048.7,1.71848301]
[1773306234809,0.46969028,2049.1,2048.8,0.49824225]
[1773306235019,1.68974681,2049.1,2048.8,0.49824225]
[1773306235419,0.46769028,2049.0,2048.6,1.71858785]
[1773306235733,0.46769028,2049.0,2048.6,0.49824225]
[1773306236218,0.46769028,2049.0,2048.5,1.22038581]
[1773306236417,0.46769028,2049.0,2048.5,1.71862806]
[1773306237838,0.46769028,2048.8,2048.5,0.49824225]
[1773306238023,0.46769028,2048.8,2048.3,0.49824225]
[1773306238231,0.46769028,2048.7,2048.1,5.38057795]
[1773306238537,0.46769028,2048.7,2048.2,0.49824225]
[1773306240137,0.46769028,2048.5,2048.2,0.49824225]
[1773306240344,0.46769028,2048.5,2048.2,1.71881673]
[1773306241523,0.46769028,2048.5,2048.2,0.49824225]
[1773306241932,0.46769028,2048.5,2048.2,1.71881282]
[1773306243466,0.46769028,2048.4,2048.1,0.49824225]
[1773306244053,1.22039529,2048.6,2048.1,0.49824225]
[1773306244054,0.46769028,2048.7,2048.2,1.22058392]
[1773306244375,0.46769028,2048.7,2048.4,0.001]
[1773306244771,0.002,2048.5,2048.4,0.001]
[1773306246178,0.46969028,2048.5,2048.4,0.001]
[1773306246387,0.46969028,2048.5,2048.1,0.001]
[1773306248488,0.46769028,2048.3,2048.1,0.001]
[1773306253096,0.002,2048.5,2048.2,0.49824225]
[1773306253800,0.002,2048.7,2048.4,0.49824225]
[1773306254095,0.002,2048.7,2048.5,1.22040517]
[1773306254593,0.002,2048.7,2048.5,1.71864742]
[1773306254796,0.002,2048.7,2048.6,0.49824225]
[1773306256903,0.002,2048.7,2048.5,0.49824225]
[1773306259109,0.002,2048.7,2048.6,1.2203456]
[1773306259607,0.002,2048.7,2048.6,1.71858785]
[1773306262211,0.002,2048.9,2048.7,0.45496708]
[1773306263719,0.38705268,2049.2,2048.8,0.45496708]
[1773306264218,0.88533393,2049.2,2048.8,0.45496708]
[1773306264520,0.49828125,2049.1,2048.6,1.67531268]
[1773306264699,0.49828125,2049.1,2048.6,1.2203456]
[1773306266130,0.49828125,2049.1,2048.6,1.67531268]
[1773306266325,0.002,2049.3,2049.0,0.45496708]
[1773306267588,0.002,2049.3,2049.1,1.22004782]
[1773306269890,0.50028125,2049.3,2049.0,0.45496708]
[1773306270097,0.50028125,2049.3,2048.9,1.22012932]
[1773306270699,0.50028125,2049.3,2048.9,1.6750964]
[1773306271429,0.002,2049.1,2048.9,1.6750964]
[1773306273625,0.002,2049.1,2048.9,0.45496708]
[1773306273824,0.002,2049.1,2048.9,1.67512008]
[1773306274729,0.002,2049.1,2048.9,0.45496708]
[1773306275208,0.002,2049.1,2048.9,1.67513085]
[1773306277799,0.002,2049.3,2049.0,0.45496708]
[1773306278953,0.002,2049.6,2049.0,0.45496708]
[1773306278954,0.002,2049.6,2049.1,0.45496708]
[1773306279437,0.50028125,2049.6,2049.1,0.45496708]
[1773306279813,0.50028125,2049.6,2049.2,1.67495536]
[1773306280532,0.002,2049.6,2049.3,0.45496708]
[1773306282135,0.002,2049.6,2049.4,1.67483631]
[1773306282741,0.002,2049.6,2049.5,0.45522788]
[1773306284298,0.002,2049.6,2049.5,1.67503758]
[1773306285435,0.002,2049.6,2049.3,0.45522788]
[1773306289419,0.002,2049.6,2049.5,0.45522788]
[1773306289628,0.002,2049.9,2049.6,0.45522788]
[1773306291549,0.48995318,2049.9,2049.6,1.67492944]
[1773306293137,0.48995318,2049.9,2049.6,0.45522788]
[1773306293349,0.48795318,2049.8,2049.3,0.4719616]
[1773306293646,0.48795318,2049.6,2049.1,3.49200759]
[1773306293950,0.48795318,2049.6,2049.1,3.96396919]
[1773306294652,0.48795318,2049.6,2049.2,0.4719616]
[1773306296639,0.48795318,2049.6,2049.5,0.001]
[1773306301324,0.48795318,2049.6,2049.1,0.001]
[1773306301325,0.66189708,2049.5,2049.1,0.001]
[1773306301525,0.48795318,2049.4,2049.1,0.001]
[1773306303362,1.70788193,2049.3,2049.1,0.001]
[1773306303526,0.48795318,2049.2,2049.1,0.001]
[1773306303727,0.48795318,2049.2,2048.7,0.001]
[1773306303946,0.48795318,2049.0,2048.7,0.001]
[1773306305730,0.48795318,2048.8,2048.7,0.001]
[1773306307667,0.48795318,2049.0,2048.7,0.001]
[1773306307854,1.7080639,2049.0,2048.7,0.001]
[1773306308054,0.48795318,2048.9,2048.7,0.001]
[1773306309758,0.48795318,2049.1,2048.7,0.4729616]
[1773306310256,0.48795318,2049.1,2048.9,0.001]
[1773306310442,0.48995318,2049.1,2048.9,0.001]
[1773306313865,1.71001294,2049.1,2048.9,0.001]
[1773306315365,0.48795318,2049.0,2048.9,0.001]
[1773306319873,1.70806054,2049.0,2048.9,0.001]
[1773306320089,1.70806054,2049.0,2048.6,0.001]
[1773306320090,0.48795318,2048.9,2048.6,0.001]
[1773306320577,0.4948229,2048.8,2048.6,0.001]
[1773306322874,1.71510893,2048.7,2048.6,0.001]
[1773306323987,0.4948229,2048.6,2048.2,0.001]
[1773306324146,0.4948229,2048.6,2048.1,0.001]
[1773306326575,1.22040517,2048.5,2048.1,0.001]
[1773306326778,0.4948229,2048.4,2048.1,0.001]
[1773306329246,0.4948229,2048.2,2047.9,0.001]
[1773306329881,0.4948229,2048.2,2047.9,1.22175988]
[1773306330382,0.4948229,2048.2,2047.9,0.001]
[1773306330785,0.4948229,2048.2,2047.9,1.22175823]
[1773306331483,1.71532487,2048.4,2047.9,0.49615899]
[1773306331782,5.5435434,2048.7,2048.2,0.49515899]
[1773306331783,1.71513454,2048.7,2048.2,0.49515899]
[1773306332984,0.4948229,2048.6,2048.2,0.49515899]
[1773306336305,1.71522566,2048.6,2048.4,0.001]
[1773306339613,0.4948229,2048.5,2048.1,0.001]
[1773306346039,1.71702662,2048.4,2048.1,0.001]
[1773306346193,1.71702662,2048.4,2048.1,0.47168208]
[1773306346394,0.49656187,2048.4,2048.1,0.47168208]
[1773306348325,1.71703217,2048.4,2048.1,0.47168208]
[1773306348529,1.71703217,2048.4,2048.2,0.001]
[1773306348694,1.71903217,2048.4,2048.2,0.001]
[1773306349495,0.49856187,2048.4,2048.2,0.001]
[1773306350338,0.002,2048.4,2048.2,0.48708686]
[1773306352350,0.002,2048.4,2048.2,0.001]
[1773306355250,0.48779321,2048.4,2048.2,0.001]
[1773306357551,0.48579321,2048.3,2048.2,0.001]
[1773306357741,0.48579321,2048.3,2048.0,0.001]
[1773306359733,0.48579321,2048.3,2047.7,0.001]
[1773306359734,0.48579321,2048.1,2047.7,0.001]
[1773306359937,0.48579321,2047.9,2047.7,0.001]
[1773306360956,0.48579321,2047.9,2047.5,0.001]
[1773306361743,1.70661555,2047.8,2047.5,0.001]
[1773306362371,1.22082234,2047.8,2047.5,0.48708686]
[1773306362736,1.22082234,2047.8,2047.7,0.001]
[1773306363863,1.70661555,2047.8,2047.7,0.001]
[1773306364684,0.48579321,2047.7,2047.5,0.001]
[1773306365529,0.48579321,2047.7,2047.4,0.001]
[1773306365735,4.88325993,2047.9,2047.0,4.88606087]
[1773306365736,0.48579321,2047.4,2047.1,1.70728776]
[1773306366264,0.48579321,2047.4,2047.1,1.2212009]
[1773306367063,0.48579321,2047.4,2047.1,0.48608686]
[1773306369043,1.70688901,2047.4,2047.1,0.48608686]
[1773306369245,0.48579321,2047.3,2047.0,0.48708686]
[1773306371270,1.70694928,2047.3,2047.0,0.48708686]
[1773306373440,1.22109425,2047.4,2047.0,0.48708686]
[1773306373637,1.70684193,2047.5,2047.1,0.48608686]
[1773306375385,1.70684193,2047.5,2047.2,0.001]
[1773306376152,0.48579321,2047.4,2047.2,0.001]
[1773306378621,1.70688247,2047.4,2047.2,0.001]
[1773306379990,0.48579321,2047.4,2047.2,0.001]
[1773306380160,0.48579321,2047.3,2047.2,0.001]
[1773306381193,1.70333503,2047.5,2047.2,0.4872852]
[1773306381390,1.22105817,2047.5,2047.2,0.4872852]
[1773306381585,1.70521871,2047.6,2047.2,0.4872852]
[1773306382591,0.48227686,2047.5,2047.2,0.4872852]
[1773306383088,1.70332683,2047.5,2047.2,0.4872852]
[1773306385265,0.48227686,2047.4,2047.2,0.001]
[1773306388108,1.70335022,2047.4,2047.2,0.001]
[1773306388684,0.48227686,2047.4,2047.2,0.001]
[1773306388997,1.70339103,2047.4,2047.2,0.001]
[1773306390166,1.70539103,2047.4,2047.2,0.001]
[1773306396498,0.48227686,2047.3,2046.9,0.001]
[1773306397294,0.48227686,2047.3,2046.9,0.4872852]
[1773306397873,0.002,2047.4,2047.0,0.4862852]
[1773306398075,1.22306196,2047.4,2047.0,0.4862852]
[1773306398475,1.22306196,2047.4,2047.1,0.4862852]
[1773306400129,0.002,2047.4,2047.1,0.4862852]
[1773306400302,0.002,2047.4,2047.2,0.4862852]
[1773306403584,0.002,2047.4,2047.2,0.4872852]
[1773306404207,0.002,2047.4,2047.0,0.13539716]
[1773306404387,0.002,2047.4,2047.1,0.13539716]
[1773306405319,0.002,2047.4,2046.9,1.35772467]
[1773306405320,0.45430743,2047.4,2046.9,1.35772467]
[1773306406212,0.45430743,2047.4,2046.9,0.13639716]
[1773306406521,0.45230743,2047.2,2046.9,1.35773455]
[1773306408644,0.002,2047.4,2047.0,0.13539716]
[1773306408922,0.45430743,2047.4,2047.0,0.13539716]
[1773306410727,1.69326887,2047.3,2047.0,0.13539716]
[1773306411220,1.69326887,2047.3,2046.9,1.29443068]
[1773306411522,0.47214837,2047.2,2046.9,1.29443068]
[1773306413023,0.47214837,2047.2,2046.9,0.07310275]
[1773306413229,0.47214837,2047.2,2046.9,1.29443839]
[1773306413525,0.47214837,2047.2,2046.9,0.001]
[1773306413526,0.47214837,2047.1,2046.9,0.001]
[1773306415194,0.47214837,2047.0,2046.7,0.001]
[1773306415400,0.47214837,2046.7,2046.4,0.07310275]
[1773306415616,0.47214837,2046.7,2046.3,1.29477445]
[1773306416525,0.47214837,2046.7,2046.6,0.001]
[1773306424323,1.69362684,2046.7,2046.6,0.001]
[1773306424516,0.47214837,2046.7,2046.6,0.001]
[1773306426334,0.47214837,2046.7,2046.1,1.29492624]
[1773306426335,0.47214837,2046.6,2046.1,1.29492624]
[1773306426639,0.47214837,2047.0,2046.3,0.07310275]
[1773306426812,0.47214837,2047.0,2046.5,0.07310275]
[1773306427014,1.82342001,2047.1,2046.7,0.07310275]
[1773306427219,2.29556838,2047.1,2046.7,0.07310275]
[1773306427942,0.60218021,2047.1,2046.7,0.07310275]
[1773306428653,0.60218021,2047.1,2046.9,0.07310275]
[1773306429344,0.60418021,2047.1,2046.9,0.07310275]
[1773306430331,1.82543824,2047.1,2046.9,0.07310275]
[1773306430632,0.60418021,2047.1,2046.9,0.07310275]
[1773306432428,0.60418021,2047.1,2047.0,0.07310275]
[1773306434042,0.60418021,2047.1,2047.0,1.29440221]
[1773306434242,0.60418021,2047.1,2047.0,0.07310275]
[1773306435137,0.60418021,2047.1,2046.8,1.3173919]
[1773306435446,0.60418021,2047.1,2046.9,0.09501879]
[1773306436252,0.50705759,2047.1,2046.9,1.31633746]
[1773306439327,0.50705759,2047.1,2047.0,0.09501879]
[1773306440441,0.46625827,2047.1,2047.0,1.31631825]
[1773306440750,0.37123948,2047.1,2047.0,1.22129946]
[1773306442037,0.48028599,2047.4,2047.0,1.22129946]
[1773306442557,0.002,2047.4,2047.0,0.66294577]
[1773306443660,0.002,2047.4,2046.9,4.88534669]
[1773306444257,0.50199999,2047.4,2046.9,4.88534669]
[1773306449558,0.002,2047.4,2046.9,4.88534669]
[1773306450060,0.002,2047.4,2047.0,0.66293685]
[1773306450237,0.86150521,2047.6,2047.2,0.66293685]
[1773306450443,0.86150521,2047.6,2047.0,0.66293685]
[1773306452069,0.86150521,2047.6,2047.1,1.2212398]
[1773306452448,0.36150522,2047.6,2047.1,1.2212398]
[1773306454361,0.36150522,2047.6,2047.1,1.2222398]
[1773306454678,0.002,2047.2,2047.1,1.2222398]
[1773306454966,0.36150522,2047.6,2047.1,1.2222398]
[1773306456768,0.49999999,2047.9,2047.4,0.66293685]
[1773306458681,0.49999999,2047.9,2047.5,1.22100122]
[1773306459878,0.4853487,2047.9,2047.5,1.22100122]
[1773306460278,0.4853487,2047.9,2047.5,1.23565251]
[1773306463972,0.4853487,2047.9,2047.6,0.01465129]
[1773306465955,0.4853487,2047.9,2047.6,1.23556356]
[1773306467677,0.002,2047.7,2047.6,1.23556356]
[1773306469254,0.002,2047.7,2047.6,1.23559288]